Cogmind - Beta 10.1 @@@ ROGUE MODE // 2020.10.14 @ 20:06:23 Player: WayneKnight Result: Self-destructed Performance ------------- Evolutions (1) 500 Regions Visited (4) 800 Robots Destroyed (91) 455 Value Destroyed (2383) 2383 Prototype IDs (8) 160 Alien Tech Used (0) 0 Bonus (192) 192 TOTAL SCORE: 4490 Bonus ------- High Alert Combat Kills 132 Follower Combat Kills 60 Cogmind --------- Core Integrity 19/400 Matter 252/300 Energy 280/280 System Corruption 0% Temperature Cool (0) Movement Treading (180) Ox1 Location -9/Storage Parts ------- > --- POWER (1) -------- Cooled Ion Engine > --- PROPULSION (3) --- Light Treads Light Treads Light Treads > --- UTILITY (3) ------ Large Storage Unit Large Storage Unit High-capacity Storage Unit > --- WEAPON (2) ------- Heavy Assault Rifle Heavy Assault Rifle > --- INVENTORY (24) --- Light Nuclear Core Light Treads Light Treads Light Treads Light Treads Light Treads Medium Storage Unit Large Storage Unit High-capacity Matter Pod (200) Visual Processing Unit Visual Processing Unit Improved Signal Interpreter Transport Network Coupler Transmission Jammer Hardened Light Armor Plating Hacking Suite Improved Medium Laser Improved Medium Laser Improved Medium Laser Light EM Pulse Cannon Shotgun Grenade Launcher Mini Grenade Launcher Katana Peak State ------------ > --- POWER ------------ Cooled Ion Engine > --- PROPULSION ------- Light Treads Light Treads Improved Treads > --- UTILITY ---------- Large Storage Unit High-capacity Storage Unit Transmission Jammer > --- WEAPON ----------- Improved Medium Laser Improved Medium Laser > --- INVENTORY -------- Light Ion Engine Cooled Ion Engine Light Treads Light Treads Light Treads Medium Storage Unit Large Storage Unit High-capacity Matter Pod Visual Processing Unit Improved Signal Interpreter Transport Network Coupler Improved Medium Laser Improved Medium Laser Light EM Pulse Cannon Advanced Beam Cannon Grenade Launcher Rocket Launcher Hammer [Rating: 21] Favorites ----------- Power Cooled Ion Engine Engine Cooled Ion Engine Propulsion Light Treads Treads Light Treads Leg Aluminum Leg Utility Large Storage Unit Device Transmission Jammer Storage Large Storage Unit Protection Propulsion Shielding Weapon Light Assault Rifle Energy Gun Improved Medium Laser Energy Cannon Light EM Pulse Cannon Ballistic Gun Light Assault Rifle Impact Weapon Hammer Slashing Weapon Katana Build | -11 -10 -10 -9 -9 ------- Run | Scr Mat Min Mat Sto Slots Evolved 2 | . . . 2 . Power . | . . . . . Propulsion 1 | . . . 1 . Utility 1 | . . . 1 . Weapon . | . . . . . Parts Attached 68 | . 14 4 34 16 Power 5 | . 2 1 2 . Engine 5 | . 2 1 2 . Core . | . . . . . Reactor . | . . . . . Propulsion 25 | . 5 . 12 8 Treads 25 | . 5 . 12 8 Leg . | . . . . . Wheel . | . . . . . Hover . | . . . . . Flight . | . . . . . Utility 8 | . 4 . 3 1 Device 2 | . . . 2 . Storage 5 | . 4 . . 1 Processor . | . . . . . Hackware . | . . . . . Protection 1 | . . . 1 . Artifact . | . . . . . Weapon 30 | . 3 3 17 7 Energy Gun 12 | . 2 1 9 . Energy Cannon 1 | . . . 1 . Ballistic Gun 13 | . 1 2 4 6 Ballistic Cannon . | . . . . . Launcher . | . . . . . Special Weapon . | . . . . . Impact Weapon 2 | . . . 2 . Slashing Weapon 2 | . . . 1 1 Piercing Weapon . | . . . . . Special Melee Weapon . | . . . . . Unidentified Prototypes 1 | . . . 1 . Parts Lost 11 | . 2 1 7 1 Power 1 | . . . 1 . Propulsion 3 | . . . 3 . Utility 1 | . . . 1 . Weapon 6 | . 2 1 2 1 Highest Loss Streak 2 | . 1 1 2 1 Average Slot Usage (%) 98 | . 99 100 96 99 Engine 12 | . 14 14 10 11 Treads 29 | . 27 28 30 33 Device 4 | . . . 9 3 Storage 25 | . 27 28 22 29 Energy Gun 9 | . 5 14 12 5 Ballistic Gun 14 | . 22 14 9 14 Naked Turns . | . . . . . Heaviest Build 78 | 12 54 56 64 78 Greatest Support 63 | 20 40 40 63 60 Greatest Overweight (x) 1 | . 1 1 1 1 Average Overweight (x) . | . . 1 . 1 Largest Inventory Capacity 24 | 6 18 18 18 24 Average Capacity 18 | 6 14 18 18 22 Most Carried 24 | 6 18 18 18 24 Average Carried 16 | 6 11 17 17 20 Final Capacity 24 | 6 18 18 18 24 Final Carried 24 | 6 18 18 18 24 Class Distribution -------------------- 64% | Mutant 32% | Scavenger-Mutant 3% | Hauler-Mutant Dominant Class ---------------- Mutant | -10/Materials Mutant | -10/Mines Mutant | -9/Materials Scavenger-Mutant | -9/Storage Resources | -11 -10 -10 -9 -9 ----------- Run | Scr Mat Min Mat Sto Matter Collected 1833 | 200 427 105 691 410 Remotely . | . . . . . Salvage Created 3149 | . 521 162 1356 1110 Parts 209 | . 37 17 86 69 Haulers Intercepted 4 | . 2 . 2 . Recyclers Shooed 1 | . . . 1 . Parts Field Recycled . | . . . . . Retrieved Matter . | . . . . . Parts Self-Destructed . | . . . . . Prevented . | . . . . . Kills | -11 -10 -10 -9 -9 ------- Run | Scr Mat Min Mat Sto Combat Hostiles Destroyed 79 | . 12 9 36 22 Guns 78 | . 12 9 35 22 Cannons 1 | . . . 1 . Classes Destroyed 11 | . 4 1 4 2 Worker 2 | . . 1 . 1 Hauler 4 | . 2 . 2 . Recycler 1 | . . . . 1 Operator 3 | . . . 1 2 Watcher 2 | . 2 . . . Swarmer 30 | . 5 9 13 3 Grunt 25 | . 7 . 10 8 Brawler 1 | . . . . 1 Duelist 2 | . . . 2 . Protector 1 | . . . 1 . Sentry 20 | . . . 10 10 Best Kill Streak 5 | . 2 3 5 5 Combat Bots Only 5 | . 2 3 5 5 Max Kills in Single Turn 2 | . 1 1 1 2 Gunslinging 1 | . . . . 1 Exploded . | . . . . . Melee . | . . . . . Uniques/NPCs Destroyed . | . . . . . Combat | -11 -10 -10 -9 -9 -------- Run | Scr Mat Min Mat Sto Damage Taken 3697 | . 704 295 1717 981 Core 551 | . 117 53 237 144 Absorbed by Shields . | . . . . . Core Remaining (%) 66 | 100 . 32 . . Volleys Fired 237 | . 59 16 103 59 Largest 2 | . 2 2 2 2 Hottest 112 | . 70 70 112 68 Shots Fired 466 | . 114 32 204 116 Gun 464 | . 114 32 202 116 Cannon 2 | . . . 2 . Launcher . | . . . . . Special . | . . . . . Kinetic 321 | . 96 16 109 100 Thermal 127 | . 18 16 93 . Explosive . | . . . . . Electromagnetic 18 | . . . 2 16 Robot Hit Streak 27 | . 16 9 20 27 Robot Miss Streak 5 | . 3 2 5 3 Penetration Max . | . . . . . Secondary Targets 12 | . 5 2 2 3 Max Gunslinging Chain 1 | . 1 1 1 1 Shots Hit Robots 340 | . 78 20 152 90 Core Hits 154 | . 35 14 64 41 Critical Hits 3 | . . . 2 1 Critical Kills 2 | . . . 1 1 Critical Parts Destroyed 1 | . . . 1 . Melee Attacks 20 | . . . 7 13 Impact 5 | . . . 5 . Slashing 15 | . . . 2 13 Piercing . | . . . . . Sneak Attacks . | . . . . . Combat Hostiles . | . . . . . Follow-up Attacks . | . . . . . Damage Inflicted 5282 | . 927 253 2543 1559 Guns 4996 | . 890 208 2402 1496 Cannons 38 | . . . 38 . Explosions 36 | . . . 36 . Melee 37 | . . . . 37 Ramming 175 | . 37 45 67 26 Kinetic 3091 | . 706 45 1144 1196 Thermal 1641 | . 184 163 1294 . Explosive . | . . . . . Electromagnetic 338 | . . . 38 300 Impact . | . . . . . Slashing 37 | . . . . 37 Piercing . | . . . . . Highest Corruption . | . . . . . Average Corruption . | . . . . . Corruption Purged . | . . . . . Overload Shots . | . . . . . Overflow Damage 9 | . . . 9 . Projectiles . | . . . . . Explosions 7 | . . . 7 . Melee 2 | . . . 2 . Knockbacks 1 | . 1 . . . Impact 1 | . 1 . . . Kinetic . | . . . . . Secondary . | . . . . . Self-Inflicted Damage 48 | . . . 48 . Shots 1 | . . . 1 . Rammed 19 | . 6 7 5 1 Targets Rammed 21 | . 6 7 6 2 Kicked . | . . . . . Crushed 2 | . . . 1 1 Highest Temperature 314 | . 152 80 314 6 Average Temperature 41 | . 36 33 49 4 Received Heat Transfer 987 | . 288 . 363 336 Siege Activations . | . . . . . Robots Corrupted . | . . . . . Combat Hostiles . | . . . . . Parts Fried . | . . . . . Impact Corruptions 1 | . . . 1 . Robots Melted . | . . . . . Combat Hostiles . | . . . . . Parts Melted 9 | . 1 2 6 . Heat Transferred 3787 | . 518 481 2788 . Parts Sabotaged . | . . . . . Parts Stolen . | . . . . . Parts Stripped . | . . . . . Power Chain Reactions 1 | . . . 1 . Missiles Intercepted . | . . . . . Alert | -11 -10 -10 -9 -9 ------- Run | Scr Mat Min Mat Sto Peak Influence 672 | . 195 236 672 461 Initial 118 | . . 56 . 118 Average 172 | . 82 66 239 253 Maximum Alert Level 2 | . . 1 2 2 Low Security (%) 69 | 100 100 97 53 35 Level 1 17 | . . 2 16 58 Level 2 12 | . . . 29 6 Level 3 . | . . . . . Level 4 . | . . . . . Level 5 . | . . . . . High Security . | . . . . . Max Security . | . . . . . Squads Dispatched 10 | . 1 . 4 5 Investigation 4 | . 1 . 1 2 Extermination . | . . . . . Reinforcement 3 | . . . 2 1 Assault 3 | . . . 1 2 Garrison . | . . . . . Intercept . | . . . . . Construction Impeded . | . . . . . Haulers Reinforced . | . . . . . Stealth | -11 -10 -10 -9 -9 --------- Run | Scr Mat Min Mat Sto Distress Signals 9 | . . . 6 3 Communications Jammed 7 | . . . 7 . Distress Signals 7 | . . . 7 . Times Spotted 118 | . 17 10 57 34 Peak Tracking Total 9 | . 3 3 6 9 Tactical Retreats 7 | . . 1 5 1 Traps | -11 -10 -10 -9 -9 ------- Run | Scr Mat Min Mat Sto Traps Triggered 6 | . 1 . 4 1 Indirectly . | . . . . . Trap Hack Attempts . | . . . . . Triggered . | . . . . . Disarmed . | . . . . . Reprogrammed . | . . . . . Reused . | . . . . . Traps Extracted . | . . . . . Installed . | . . . . . Triggered . | . . . . . Machines | -11 -10 -10 -9 -9 ---------- Run | Scr Mat Min Mat Sto Machines Disabled 3 | . . . 1 2 Max in Single Turn 1 | . . . 1 1 Machines Sabotaged . | . . . . . Garrisons Compromised . | . . . . . Overloaded Fab Kills . | . . . . . Fab Network Shutdowns . | . . . . . Hacking | -11 -10 -10 -9 -9 --------- Run | Scr Mat Min Mat Sto Machines Accessed 29 | . 9 . 10 10 Terminals 22 | . 6 . 7 9 Fabricators . | . . . . . Repair Stations 2 | . 1 . 1 . Recycling Units 4 | . 2 . 1 1 Scanalyzers 1 | . . . 1 . Garrison Access . | . . . . . Total Hacks 92 | . 23 . 34 35 Successful 57 | . 17 . 25 15 Failed 35 | . 6 . 9 20 Catastrophic 4 | . 1 . 1 2 Database Lockouts . | . . . . . Manual 57 | . 12 . 22 23 Terminals 79 | . 18 . 27 34 Fabricators . | . . . . . Repair Stations 4 | . 2 . 2 . Recycling Units 5 | . 3 . 1 1 Scanalyzers 4 | . . . 4 . Garrison Access . | . . . . . Terminal Hacks 26 | . 7 . 11 8 Record 1 | . 1 . . . Part Schematic 1 | . . . 1 . Robot Analysis 4 | . 1 . 1 2 Prototype ID Bank 6 | . 2 . 2 2 Open Door 1 | . . . . 1 Level Access Points 1 | . . . . 1 Branch Access Points 1 | . . . 1 . Alert Level 1 | . . . 1 . Unreport Threat 4 | . . . 3 1 Locate Traps 1 | . 1 . . . Hauler Manifests 1 | . 1 . . . Zone Layout 4 | . 1 . 2 1 Fabricator Hacks . | . . . . . Repair Station Hacks 3 | . 2 . 1 . Scan Component 2 | . 1 . 1 . Repair 1 | . 1 . . . Recycling Unit Hacks 4 | . 2 . 1 1 Report Inventory 4 | . 2 . 1 1 Scanalyzer 4 | . . . 4 . Insert Component 2 | . . . 2 . Analyze 2 | . . . 2 . Garrison Access Hacks . | . . . . . Unauthorized Hacks 20 | . 6 . 8 6 Terminals 19 | . 5 . 8 6 Track 9 | . 2 . 3 4 Assimilate 1 | . . . 1 . Botnet 9 | . 3 . 4 2 Fabricators . | . . . . . Repair Stations . | . . . . . Recycling Units 1 | . 1 . . . Tunnel 1 | . 1 . . . Scanalyzers . | . . . . . Garrison Access . | . . . . . Data Cores Recovered 1 | . . . . 1 Used . | . . . . . Hacking Detections 24 | . 7 . 8 9 Full Trace Events 2 | . . . . 2 Feedback Events . | . . . . . Feedback Blocked . | . . . . . Robot Schematics Acquired . | . . . . . Robots Built . | . . . . . Matter . | . . . . . Time . | . . . . . Total Robot Build Rating . | . . . . . Part Schematics Acquired 3 | . . . 3 . Parts Built . | . . . . . Matter . | . . . . . Time . | . . . . . Total Part Build Rating . | . . . . . Parts Repaired 1 | . 1 . . . Time 26 | . 26 . . . Parts Recycled . | . . . . . Recycled Matter . | . . . . . Retrieved Matter . | . . . . . Retrieved Components . | . . . . . Parts Scanalyzed 2 | . . . 2 . Part Schematics Acquired 2 | . . . 2 . Parts Damaged . | . . . . . Bothacking | -11 -10 -10 -9 -9 ------------ Run | Scr Mat Min Mat Sto Used RIF Installer . | . . . . . Robots Hacked . | . . . . . Non-combat . | . . . . . Combat . | . . . . . Robot Hacks Applied . | . . . . . Relay Couplers Released . | . . . . . Robots Rewired . | . . . . . Allies Hacked . | . . . . . Hacks Repelled . | . . . . . Allies | -11 -10 -10 -9 -9 -------- Run | Scr Mat Min Mat Sto Total Allies 3 | . . 1 . 2 Largest Group 2 | . . 1 . 2 Highest-Rated Group 62 | . . 31 . 62 Highest-Rated Ally 31 | . . 31 . 31 Total Orders . | . . . . . Ally Attacks 12 | . . . . 12 Total Damage 164 | . . . . 164 Kills 2 | . . . . 2 Allies Corrupted . | . . . . . Allies Melted . | . . . . . Intel | -11 -10 -10 -9 -9 ------- Run | Scr Mat Min Mat Sto Robot Analysis Total 4 | . 1 . 1 2 Derelict Logs Recovered 1 | . . 1 . . Drone Launches . | . . . . . Drone Recoveries . | . . . . . Exploration | -11 -10 -10 -9 -9 ------------- Run | Scr Mat Min Mat Sto Turns Passed 6693 | 2 1591 1249 2679 1172 Spaces Moved 3177 | 2 760 653 1306 456 Core . | . . . . . Treads 3159 | . 744 653 1306 456 Legs 18 | 2 16 . . . Wheels . | . . . . . Hover . | . . . . . Flight . | . . . . . Fastest Speed 120 | 120 120 180 160 180 Average Speed 170 | 120 161 180 168 180 Slowest Speed 180 | 120 180 180 180 180 Overloaded Moves . | . . . . . Propulsion Burnouts . | . . . . . Robots Hopped . | . . . . . Cave-ins Triggered . | . . . . . Exploration Rate (%) 70 | 2 98 97 94 63 Regions Visited 4 Branch Regions 2 Pre-discovered Areas 1 | . 1 . . . Known Exits Taken 1 | . . . 1 . Unknown Exits Taken 3 | 1 1 1 . . Scrap Searched 3 | . . 3 . . Spaces Dug 10 | . . . 6 4 Terrain Destroyed 12 | . . . 8 4 Melee 10 | . . . 6 4 Projectile . | . . . . . AOE 2 | . . . 2 . Terrain Rammed . | . . . . . Walls Destroyed . | . . . . . Machines Disabled . | . . . . . Actions | -11 -10 -10 -9 -9 --------- Run | Scr Mat Min Mat Sto Total 3956 | 1 1013 697 1573 672 Wait 346 | . 158 5 75 108 Move 3173 | 1 759 652 1305 456 Hop . | . . . . . Pick Up 39 | . 11 6 15 7 Fast Attach 14 | . 3 . 10 1 Attach 12 | . 2 1 7 2 Detach 3 | . 1 . 2 . Swap 42 | . 9 3 17 13 Drop 47 | . 5 7 26 9 Fire 237 | . 59 16 103 59 Melee 20 | . . . 7 13 Ram . | . . . . . Kick . | . . . . . Crush 21 | . 6 7 6 2 Escape Stasis 2 | . . . . 2 Rewire . | . . . . . Trap . | . . . . . Miscellaneous . | . . . . . Route ------- -11/Scrapyard -10/Materials (discovered 4 exits: *Mat x2 / [*Min x2]) -10/Mines (discovered 2 exits: *Mat x2) -9/Materials (discovered 6 exits: *Mat x3 / *Min / *Sto x2) -9/Storage (discovered 1 exit: Mat) History --------- Turn | Location | Event 1 | -11/Scrapyard | Discovered new exit (range 1) 3 | -11/Scrapyard | Entered Materials 303 | -10/Materials | Build established: Mutant 546 | -10/Materials | Repaired Lgt. Treads 864 | -10/Materials | Discovered new exit (range 10) 1082 | -10/Materials | Discovered new exit (range 15) 1240 | -10/Materials | Discovered new exit (range 7) 1417 | -10/Materials | Discovered new exit (range 14) 1594 | -10/Materials | Entered Mines 1621 | -10/Mines | Core integrity fell below 50% 1653 | -10/Mines | Discovered new exit (range 5) 1731 | -10/Mines | Learned Materials non-interactive machine intel 1752 | -10/Mines | Build established: Scavenger-Mutant 2084 | -10/Mines | Received a Mining Laser from a helpful Derelict 2190 | -10/Mines | Discovered new exit (range 7) 2216 | -10/Mines | Build established: Mutant 2405 | -10/Mines | YI-UF0 nonchalantly dropped a Grenade Launcher on the ground 2843 | -10/Mines | Entered Materials 2843 | -9/Materials | Evolved 2 slots: Propulsion x1, Utility x1 2844 | -9/Materials | Loaded intel: 40 non-interactive machine locations 3204 | -9/Materials | Identified exit to Mines 3204 | -9/Materials | Identified exit to Storage 3338 | -9/Materials | Build established: Scavenger-Mutant 3543 | -9/Materials | Discovered new exit (range 9) 3895 | -9/Materials | Build established: Mutant 4156 | -9/Materials | Discovered new exit (range 5) 4627 | -9/Materials | Discovered new exit (range 3) 4843 | -9/Materials | First assault squad dispatched 4991 | -9/Materials | Core integrity fell below 50% 5522 | -9/Materials | Entered Storage 5831 | -9/Storage | Build established: Scavenger-Mutant 6346 | -9/Storage | Core integrity fell below 20% 6382 | -9/Storage | Met a pair of Derelict thieves 6631 | -9/Storage | Identified exit to Materials 6694 | -9/Storage | Self-destructed Last Messages --------------- 06588_ Hvy. Assault Rifle destroyed. 06593_ G-34 Mercenary destroyed. 06599_ Acquired 35 matter. 06613_ Dropped Lgt. Treads. 06631_ Connecting with Terminal... >>Trojan(Track) Trojan loaded successfully. Testing... Tracking enabled and active. >>Layout(Zone) Retrieving Zone 7T layout... Downloaded map data. >>Access(Main) Found 1 level access point to Materials: (5,6) Map updated. 06665_ Connecting with Terminal... 06665_ ALERT: Suspicious activity at Terminal S005. Dispatching Investigation squad. 06689_ Y-45 Defender destroyed. Map ----- +----------------------------------------------------+ | ?????????????????????????????????????????????????? | | ?????????????????????????????????????????????????? | | ?????????????????????????????????????????????????? | | ?????????????????????????????????????????????????? | | ?